fUSD/lending_fUSD_20240428
["ID","MTS","AMOUNT","RATE_DAILY","PERIOD"]
[324806295,1714339899022,-500.0,0.00012602,2]
[324806296,1714339899033,-3192.23,0.00012602,2]
[324806297,1714339899042,-500.0,0.00012602,2]
[324806298,1714339899051,-500.0,0.00012602,2]
[324806299,1714339899061,-4836.83,0.00012602,2]
[324806300,1714339899071,-1419.08,0.00012602,2]
[324806301,1714339899081,-500.0,0.00012602,2]
[324806302,1714339899090,-3170.41,0.00012602,2]
[324806303,1714339899101,-500.0,0.00012602,2]
[324806304,1714339899111,-500.0,0.00012602,2]
[324806305,1714339899121,-500.0,0.00012602,2]
[324806306,1714339899131,-554.07,0.00012602,2]
[324806307,1714339899141,-1075.74,0.00012602,2]
[324806308,1714339899151,-3460.09,0.00012602,2]
[324806309,1714339899160,-1169.99,0.00012602,2]
[324806310,1714339899169,-812.15,0.00012602,2]
[324806311,1714339899180,-9425.46,0.00012602,2]
[324806312,1714339899189,-500.0,0.00012602,2]
[324806313,1714339899199,-1842.15,0.00012602,2]
[324806314,1714339899208,-500.0,0.00012602,2]
[324806315,1714339899217,-500.0,0.00012602,2]
[324806316,1714339899227,-1069.53,0.00012602,2]
[324806317,1714339899236,-500.0,0.00012602,2]
[324806318,1714339899246,-500.0,0.00012602,2]
[324806319,1714339899255,-500.0,0.00012602,2]
[324806320,1714339899264,-500.0,0.00012602,2]
[324806321,1714339899274,-500.0,0.00012602,2]
[324806322,1714339899283,-500.0,0.00012602,2]
[324806323,1714339899292,-14272.99,0.00012602,2]
[324806324,1714339899302,-544.14,0.00012602,2]
[324806325,1714339899312,-7051.41,0.00012602,2]
[324806326,1714339899321,-500.0,0.00012602,2]
[324806327,1714339899332,-2707.78,0.00012602,2]
[324806328,1714339899341,-500.0,0.00012602,2]
[324806329,1714339899352,-1038.22,0.00012602,2]
[324806330,1714339899362,-500.0,0.00012602,2]
[324806331,1714339899372,-789.36,0.00012602,2]
[324806332,1714339899384,-2766.64,0.00012602,2]
[324806333,1714339899395,-987.03,0.00012602,2]
[324806334,1714339899405,-1211.54,0.00012602,2]
[324806335,1714339899415,-1666.13,0.00012602,2]
[324806336,1714339899425,-675.35,0.00012602,2]
[324806337,1714339899435,-500.0,0.00012602,2]
[324806338,1714339899446,-1349.22,0.00012602,2]
[324806339,1714339899455,-1516.18,0.00012602,2]
[324806340,1714339899466,-500.0,0.00012602,2]
[324806341,1714339899476,-6591.59,0.00012602,2]
[324806342,1714339899487,-1899.29,0.00012602,2]
[324806343,1714339899497,-189.88,0.00012602,2]
[324806344,1714339899507,-783.36,0.00012602,2]
[324806345,1714339899517,-1988.95,0.00012602,2]
[324806346,1714339899527,-500.0,0.00012602,2]
[324806347,1714339899538,-1261.65,0.00012602,2]
[324806348,1714339899549,-2135.06,0.00012602,2]
[324806349,1714339899560,-500.0,0.00012602,2]
[324806350,1714339899571,-562.7,0.00012602,2]
[324806351,1714339899581,-500.0,0.00012602,2]
[324806352,1714339899591,-6232.35,0.00012602,2]
[324806353,1714339899600,-500.0,0.00012602,2]
[324806354,1714339899611,-659.22,0.00012602,2]
[324806355,1714339899620,-1410.0,0.00012602,2]
[324806356,1714339899631,-1672.92,0.00012602,2]
[324806357,1714339899641,-1799.04,0.00012602,2]
[324806358,1714339899651,-500.0,0.00012602,2]
[324806359,1714339899660,-895.24,0.00012602,2]
[324806360,1714339899670,-1513.28,0.00012602,2]
[324806361,1714339899682,-6800.76,0.00012602,2]
[324806362,1714339899692,-500.0,0.00012602,2]
[324806363,1714339899702,-500.0,0.00012602,2]
[324806364,1714339899712,-753.18,0.00012602,2]
[324806365,1714339899722,-500.0,0.00012602,2]
[324806366,1714339899731,-1733.37,0.00012602,2]
[324806367,1714339899741,-782.1,0.00012602,2]
[324806368,1714339899750,-1652.85,0.00012602,2]
[324806369,1714339899760,-500.0,0.00012602,2]
[324806370,1714339899769,-500.0,0.00012602,2]
[324806371,1714339899784,-1590.77,0.00012602,2]
[324806372,1714339899793,-12133.37,0.00012602,2]
[324806373,1714339899803,-2025.62,0.00012602,2]
[324806374,1714339899813,-1421.85,0.00012602,2]
[324806375,1714339899823,-1135.8,0.00012602,2]
[324806376,1714339899833,-500.0,0.00012602,2]
[324806377,1714339899843,-4575.67,0.00012602,2]
[324806378,1714339899852,-500.0,0.00012602,2]
[324806379,1714339899863,-1396.35,0.00012602,2]
[324806380,1714339899875,-6107.04,0.00012602,2]
[324806381,1714339899885,-998.38,0.00012602,2]
[324806382,1714339899895,-2527.69,0.00012602,2]
[324806383,1714339899906,-2789.13,0.00012602,2]
[324806384,1714339899916,-1761.96,0.00012602,2]
[324806385,1714339899926,-1062.84,0.00012602,2]
[324806386,1714339899935,-500.0,0.00012602,2]
[324806387,1714339899945,-1977.9,0.00012602,2]
[324806388,1714339899956,-2491.39,0.00012602,2]
[324806389,1714339899968,-1098.32,0.00012602,2]
[324806390,1714339899979,-500.0,0.00012602,2]
[324806391,1714339899989,-3361.84,0.00012602,2]
[324806392,1714339899999,-500.0,0.00012602,2]
[324806393,1714339900009,-1081.51,0.00012602,2]
[324806394,1714339900020,-2735.15,0.00012602,2]
[324806395,1714339900030,-500.0,0.00012602,2]
[324806396,1714339900039,-500.0,0.00012602,2]
[324806397,1714339900049,-1862.58,0.00012602,2]
[324806398,1714339900059,-4338.42,0.00012602,2]
[324806399,1714339900069,-1752.48,0.00012602,2]
[324806400,1714339900079,-500.0,0.00012602,2]
[324806401,1714339900088,-500.0,0.00012602,2]
[324806402,1714339900098,-2116.48,0.00012602,2]
[324806403,1714339900108,-844.65,0.00012602,2]
[324806404,1714339900119,-500.0,0.00012602,2]
[324806405,1714339900129,-1415.56,0.00012602,2]
[324806406,1714339900140,-1696.77,0.00012602,2]
[324806407,1714339900151,-552.51,0.00012602,2]
[324806408,1714339900160,-500.0,0.00012602,2]
[324806409,1714339900170,-500.0,0.00012602,2]
[324806410,1714339900180,-7394.13,0.00012602,2]
[324806411,1714339900190,-443.99,0.00012602,2]
[324806412,1714339900200,-500.0,0.00012602,2]
[324806413,1714339900210,-500.0,0.00012602,2]
[324806414,1714339900220,-2704.4,0.00012602,2]
[324806415,1714339900230,-500.0,0.00012602,2]
[324806416,1714339900240,-547.48,0.00012602,2]
[324806417,1714339900250,-500.0,0.00012602,2]
[324806418,1714339900260,-869.1,0.00012602,2]
[324806419,1714339900270,-500.0,0.00012602,2]
[324806420,1714339900280,-709.72,0.00012602,2]
[324806421,1714339900290,-3366.67,0.00012602,2]
[324806422,1714339900299,-849.0,0.00012602,2]
[324806423,1714339900309,-4609.23,0.00012602,2]
[324806424,1714339900318,-500.0,0.00012602,2]
[324806425,1714339900328,-1257.26,0.00012602,2]
[324806426,1714339900337,-500.0,0.00012602,2]
[324806427,1714339900347,-972.25,0.00012602,2]
[324806428,1714339900357,-1051.8,0.00012602,2]
[324806429,1714339900368,-500.0,0.00012602,2]
[324806430,1714339900377,-1129.36,0.00012602,2]
[324806431,1714339900387,-500.0,0.00012602,2]
[324806432,1714339900397,-531.19,0.00012602,2]
[324806433,1714339900407,-1721.28,0.00012602,2]
[324806434,1714339900418,-1025.92,0.00012602,2]
[324806435,1714339900428,-505.66,0.00012602,2]
[324806436,1714339900438,-500.0,0.00012602,2]
[324806437,1714339900448,-500.0,0.00012602,2]
[324806438,1714339900458,-784.13,0.00012602,2]
[324806439,1714339900467,-3106.8,0.00012602,2]
[324806440,1714339900477,-500.0,0.00012602,2]
[324806441,1714339900487,-1332.25,0.00012602,2]
[324806442,1714339900497,-1770.89,0.00012602,2]
[324806443,1714339900507,-500.0,0.00012602,2]
[324806444,1714339900516,-3285.67,0.00012602,2]
[324806445,1714339900526,-500.0,0.00012602,2]
[324806446,1714339900535,-1973.0,0.00012602,2]
[324806447,1714339900546,-196.0,0.00012602,2]
[324806448,1714339900556,-500.0,0.00012602,2]
[324806449,1714339900566,-581.39,0.00012602,2]
[324806450,1714339900576,-500.0,0.00012602,2]
[324806451,1714339900586,-5056.57,0.00012602,2]
[324806452,1714339900595,-500.0,0.00012602,2]
[324806453,1714339900605,-500.0,0.00012602,2]
[324806454,1714339900614,-528.94,0.00012602,2]
[324806455,1714339900624,-1960.25,0.00012602,2]
[324806456,1714339900634,-500.0,0.00012602,2]
[324806457,1714339900644,-313.19,0.00012602,2]
[324806458,1714339900655,-854.46,0.00012602,2]
[324806459,1714339900665,-500.0,0.00012602,2]
[324806460,1714339900678,-505.33,0.00012602,2]
[324806461,1714339900690,-1460.22,0.00012602,2]
[324806462,1714339900700,-500.0,0.00012602,2]
[324806463,1714339900710,-500.0,0.00012602,2]
[324806464,1714339900722,-4144.13,0.00012602,2]
[324806465,1714339900732,-500.0,0.00012602,2]
[324806466,1714339900742,-2730.97,0.00012602,2]
[324806467,1714339900965,-2002.94,0.00012602,2]
[324806468,1714339900983,-1318.77,0.00012602,2]
[324806469,1714339900993,-500.0,0.00012602,2]
[324806470,1714339901003,-500.0,0.00012602,2]
[324806471,1714339901012,-1001.05,0.00012602,2]
[324806472,1714339901022,-500.0,0.00012602,2]
[324806473,1714339901031,-500.0,0.00012602,2]
[324806474,1714339901041,-500.0,0.00012602,2]
[324806475,1714339901051,-9331.99,0.00012602,2]
[324806476,1714339901060,-4277.49,0.00012602,2]
[324806477,1714339901070,-500.0,0.00012602,2]
[324806478,1714339901079,-5193.46,0.00012602,2]
[324806479,1714339901088,-775.85,0.00012602,2]
[324806480,1714339901098,-743.46,0.00012602,2]
[324806482,1714339901107,-500.0,0.00012602,2]
[324806483,1714339901117,-500.0,0.00012602,2]
[324806485,1714339901126,-389.17,0.00012651,2]
[324806486,1714339901136,-1000.0,0.0001269,2]
[324806487,1714339901145,-3252.39319555,0.00012714,2]
[324806488,1714339901155,-518.0,0.00012822,2]
[324806489,1714339901165,-234.451,0.00012822,2]
[324806490,1714339901176,-150.485,0.00012822,2]
[324806491,1714339901185,-211.876,0.00012822,2]
[324806492,1714339901195,-1249.83,0.00012875,2]
[324806493,1714339901204,-1249.83,0.00012875,2]
[324806494,1714339901214,-500.0,0.00012876,2]
[324806495,1714339901223,-500.0,0.00012876,2]
[324806496,1714339901233,-500.0,0.00012876,2]
[324806497,1714339901242,-500.0,0.00012876,2]
[324806498,1714339901252,-500.0,0.00012876,2]
[324806499,1714339901261,-500.0,0.00012876,2]
[324806500,1714339901270,-500.0,0.00012876,2]
[324806501,1714339901280,-500.0,0.00012876,2]
[324806502,1714339901289,-500.0,0.00012876,2]
[324806503,1714339901299,-500.0,0.00012876,2]
[324806504,1714339901308,-500.0,0.00012876,2]
[324806505,1714339901317,-500.0,0.00012876,2]
[324806506,1714339901326,-500.0,0.00012876,2]
[324806507,1714339901336,-506.83,0.00012876,2]
[324806508,1714339901345,-500.0,0.00012876,2]
[324806509,1714339901354,-566.00744216,0.00012876,2]
[324806510,1714339901363,-500.0,0.00012876,2]
[324806511,1714339901373,-500.0,0.00012876,2]
[324806512,1714339901382,-500.0,0.00012876,2]
[324806513,1714339901392,-500.0,0.00012876,2]
[324806514,1714339901401,-500.0,0.00012876,2]
[324806515,1714339901411,-500.0,0.00012876,2]
[324806516,1714339901420,-500.0,0.00012876,2]
[324806517,1714339901430,-500.0,0.00012876,2]
[324806518,1714339901440,-500.0,0.00012876,2]
[324806519,1714339901449,-500.0,0.00012876,2]
[324806520,1714339901459,-500.0,0.00012876,2]
[324806521,1714339901468,-500.0,0.00012876,2]
[324806522,1714339901477,-500.0,0.00012876,2]
[324806523,1714339901486,-500.0,0.00012876,2]
[324806524,1714339901495,-500.0,0.00012876,2]
[324806525,1714339901505,-500.0,0.00012876,2]
[324806526,1714339901515,-500.0,0.00012876,2]
[324806527,1714339901525,-586.34,0.00012876,2]
[324806528,1714339901534,-500.0,0.00012876,2]
[324806529,1714339901543,-517.57,0.00012876,2]
[324806530,1714339901553,-733.89,0.00012876,2]
[324806531,1714339901562,-674.04,0.00012876,2]
[324806532,1714339901571,-500.0,0.00012876,2]
[324806533,1714339901581,-500.0,0.00012876,2]
[324806534,1714339901591,-500.0,0.00012876,2]
[324806535,1714339901600,-500.0,0.00012876,2]
[324806536,1714339901609,-541.52591508,0.00012876,2]
[324806537,1714339901619,-500.0,0.00012876,2]
[324806538,1714339901629,-500.0,0.00012876,2]
[324806539,1714339901639,-207.05344252,0.00012876,2]
[324806540,1714339901651,-500.0,0.00012876,2]
[324806541,1714339901660,-552.07,0.00012876,2]
[324806542,1714339901670,-500.0,0.00012876,2]
[324806543,1714339901680,-588.66,0.00012876,2]
[324806544,1714339901691,-500.0,0.00012876,2]
[324806545,1714339901700,-798.42,0.00012876,2]
[324806546,1714339901710,-280.25,0.00012876,2]
[324806547,1714339901722,-500.0,0.00012876,2]
[324806548,1714339901732,-928.66,0.00012876,2]
[324806549,1714339901742,-505.51,0.00012876,2]
[324806550,1714339901754,-500.0,0.00012876,2]
[324806551,1714339901765,-500.0,0.00012876,2]
[324806552,1714339901776,-903.89,0.00012876,2]
[324806553,1714339901789,-737.63,0.00012876,2]
[324806554,1714339901799,-500.0,0.00012876,2]
[324806555,1714339901809,-500.0,0.00012876,2]
[324806556,1714339901820,-718.49,0.00012876,2]
[324806557,1714339901829,-864.97,0.00012876,2]
[324806558,1714339901840,-500.0,0.00012876,2]
[324806559,1714339901849,-504.53,0.00012876,2]
[324806560,1714339901860,-500.0,0.00012876,2]
[324806561,1714339901871,-594.05,0.00012876,2]
[324806562,1714339901882,-500.0,0.00012876,2]
[324806563,1714339901892,-500.0,0.00012876,2]
[324806564,1714339901902,-500.0,0.00012876,2]
[324806565,1714339901912,-870.38,0.00012876,2]
[324806566,1714339901921,-501.18,0.00012876,2]
[324806567,1714339901932,-500.0,0.00012876,2]
[324806568,1714339901941,-500.0,0.00012876,2]
[324806569,1714339901951,-500.0,0.00012876,2]
[324806570,1714339901962,-500.0,0.00012876,2]
[324806571,1714339901973,-500.0,0.00012876,2]
[324806572,1714339901983,-500.0,0.00012876,2]
[324806573,1714339901993,-500.0,0.00012876,2]
[324806574,1714339902002,-500.0,0.00012876,2]
[324806575,1714339902012,-500.0,0.00012876,2]
[324806576,1714339902021,-610.01,0.00012876,2]
[324806577,1714339902030,-500.0,0.00012876,2]
[324806578,1714339902040,-567.57,0.00012876,2]
[324806579,1714339902049,-500.0,0.00012876,2]
[324806580,1714339902059,-500.0,0.00012876,2]
[324806581,1714339902069,-1451.39,0.00012876,2]
[324806582,1714339902079,-500.0,0.00012876,2]
[324806583,1714339902088,-500.0,0.00012876,2]
[324806584,1714339902099,-1302.89,0.00012876,2]
[324806585,1714339902108,-500.0,0.00012876,2]
[324806586,1714339902118,-545.45,0.00012876,2]
[324806587,1714339902128,-500.0,0.00012876,2]
[324806588,1714339902138,-500.0,0.00012876,2]
[324806589,1714339902147,-500.0,0.00012876,2]
[324806590,1714339902156,-500.0,0.00012876,2]
[324806591,1714339902166,-500.0,0.00012876,2]
[324806592,1714339902175,-525.6,0.00012876,2]
[324806593,1714339902184,-500.0,0.00012876,2]
[324806594,1714339902193,-500.0,0.00012876,2]
[324806595,1714339902203,-500.0,0.00012876,2]
[324806596,1714339902212,-500.0,0.00012876,2]
[324806597,1714339902221,-500.0,0.00012876,2]
[324806598,1714339902230,-585.48,0.00012876,2]
[324806599,1714339902240,-584.64,0.00012876,2]
[324806600,1714339902249,-857.33,0.00012876,2]
[324806601,1714339902258,-500.0,0.00012876,2]
[324806602,1714339902268,-704.02,0.00012876,2]
[324806603,1714339902277,-500.0,0.00012876,2]
[324806604,1714339902286,-1320.75,0.00012876,2]
[324806605,1714339902296,-500.0,0.00012876,2]
[324806606,1714339902306,-500.0,0.00012876,2]
[324806607,1714339902316,-507.58,0.00012876,2]
[324806608,1714339902325,-500.0,0.00012876,2]
[324806609,1714339902335,-500.0,0.00012876,2]
[324806610,1714339902344,-500.0,0.00012876,2]
[324806611,1714339902353,-500.0,0.00012876,2]
[324806612,1714339902363,-730.12,0.00012876,2]
[324806613,1714339902372,-500.0,0.00012876,2]
[324806614,1714339902381,-596.65,0.00012876,2]
[324806615,1714339902391,-500.0,0.00012876,2]
[324806616,1714339902400,-369.9,0.00012876,2]
[324806617,1714339902410,-565.97,0.00012876,2]
[324806618,1714339902419,-500.0,0.00012876,2]
[324806619,1714339902430,-875.78,0.00012876,2]
[324806620,1714339902439,-500.0,0.00012876,2]
[324806621,1714339902448,-500.0,0.00012876,2]
[324806622,1714339902458,-500.0,0.00012876,2]
[324806623,1714339902468,-500.0,0.00012876,2]
[324806624,1714339902478,-526.69,0.00012876,2]
[324806625,1714339902488,-560.54,0.00012876,2]
[324806626,1714339902498,-736.07,0.00012876,2]
[324806627,1714339902507,-500.0,0.00012876,2]
[324806628,1714339902527,-508.89907781,0.00012876,2]
[324806629,1714339902538,-500.0,0.00012876,2]
[324806630,1714339902548,-604.78,0.00012876,2]
[324806631,1714339902558,-500.0,0.00012876,2]
[324806632,1714339902568,-500.0,0.00012876,2]
[324806633,1714339902579,-500.0,0.00012876,2]
[324806634,1714339902589,-500.0,0.00012876,2]
[324806635,1714339902599,-500.0,0.00012876,2]
[324806636,1714339902609,-523.54,0.00012876,2]
[324806637,1714339902619,-2956.01,0.00012876,2]
[324806638,1714339902628,-500.0,0.00012876,2]
[324806639,1714339902638,-565.94,0.00012876,2]
[324806640,1714339902648,-500.0,0.00012876,2]
[324806641,1714339902659,-500.0,0.00012876,2]
[324806642,1714339902668,-199.59,0.00012876,2]
[324806643,1714339902678,-500.0,0.00012876,2]
[324806644,1714339902688,-500.0,0.00012876,2]
[324806645,1714339902697,-453.06,0.00012876,2]
[324806646,1714339902708,-825.93,0.00012876,2]
[324806647,1714339902719,-500.0,0.00012876,2]
[324806648,1714339902729,-602.04,0.00012876,2]
[324806649,1714339902739,-651.65,0.00012876,2]
[324806650,1714339902749,-1568.74,0.00012876,2]
[324806651,1714339902759,-520.26,0.00012876,2]
[324806652,1714339902770,-500.0,0.00012876,2]
[324806653,1714339902782,-500.0,0.00012876,2]
[324806654,1714339902795,-500.0,0.00012876,2]
[324806655,1714339902805,-1140.77,0.00012876,2]
[324806656,1714339902814,-500.0,0.00012876,2]
[324806657,1714339902825,-549.86,0.00012876,2]
[324806658,1714339902836,-495.24920343,0.00012876,2]
[324806659,1714339902847,-500.0,0.00012876,2]
[324806660,1714339902858,-960.02,0.00012876,2]
[324806661,1714339902872,-500.0,0.00012876,2]
[324806662,1714339902883,-1723.08,0.00012876,2]
[324806663,1714339902893,-500.0,0.00012876,2]
[324806664,1714339902902,-500.0,0.00012876,2]
[324806665,1714339902912,-500.0,0.00012876,2]
[324806666,1714339902922,-500.0,0.00012876,2]
[324806667,1714339902933,-500.0,0.00012876,2]
[324806668,1714339902942,-555.74,0.00012876,2]
[324806669,1714339902952,-500.0,0.00012876,2]
[324806670,1714339902963,-500.0,0.00012876,2]
[324806671,1714339902973,-1272.72,0.00012876,2]
[324806672,1714339902983,-500.0,0.00012876,2]
[324806673,1714339902993,-1044.49,0.00012876,2]
[324806674,1714339903003,-567.07380414,0.00012876,2]
[324806675,1714339903012,-854.35,0.00012876,2]
[324806676,1714339903023,-500.0,0.00012876,2]
[324806677,1714339903033,-372.68,0.00012876,2]
[324806678,1714339903042,-880.39,0.00012876,2]
[324806679,1714339903052,-595.28,0.00012876,2]
[324806680,1714339903062,-500.0,0.00012876,2]
[324806681,1714339903073,-1228.27,0.00012876,2]
[324806682,1714339903083,-500.0,0.00012876,2]
[324806683,1714339903093,-729.04,0.00012876,2]
[324806684,1714339903103,-500.0,0.00012876,2]
[324806685,1714339903112,-500.0,0.00012876,2]
[324806686,1714339903122,-530.05,0.00012876,2]
[324806687,1714339903132,-205.6,0.00012876,2]
[324806688,1714339903142,-3505.37,0.00012876,2]
[324806689,1714339903152,-797.92,0.00012876,2]
[324806690,1714339903161,-529.45,0.00012876,2]
[324806691,1714339903171,-629.63,0.00012876,2]
[324806692,1714339903181,-500.0,0.00012876,2]
[324806693,1714339903191,-500.0,0.00012876,2]
[324806694,1714339903200,-1082.28,0.00012876,2]
[324806695,1714339903210,-500.0,0.00012876,2]
[324806696,1714339903219,-3192.23,0.00012876,2]
[324806697,1714339903229,-500.0,0.00012876,2]
[324806698,1714339903238,-500.0,0.00012876,2]
[324806699,1714339903247,-4836.83,0.00012876,2]
[324806700,1714339903258,-1419.08,0.00012876,2]
[324806701,1714339903267,-500.0,0.00012876,2]
[324806702,1714339903277,-3170.41,0.00012876,2]
[324806703,1714339903286,-500.0,0.00012876,2]
[324806704,1714339903297,-500.0,0.00012876,2]
[324806705,1714339903306,-500.0,0.00012876,2]
[324806706,1714339903408,-554.07,0.00012876,2]
[324806707,1714339903418,-1075.74,0.00012876,2]
[324806708,1714339903429,-3460.09,0.00012876,2]
[324806709,1714339903438,-1169.99,0.00012876,2]
[324806710,1714339903447,-812.15,0.00012876,2]
[324806711,1714339903456,-9425.46,0.00012876,2]
[324806712,1714339903466,-500.0,0.00012876,2]
[324806713,1714339903475,-1842.15,0.00012876,2]
[324806714,1714339903484,-500.0,0.00012876,2]
[324806715,1714339903493,-500.0,0.00012876,2]
[324806716,1714339903502,-1069.53,0.00012876,2]
[324806717,1714339903511,-500.0,0.00012876,2]
[324806718,1714339903521,-500.0,0.00012876,2]
[324806719,1714339903530,-500.0,0.00012876,2]
[324806720,1714339903539,-500.0,0.00012876,2]
[324806721,1714339903549,-500.0,0.00012876,2]
[324806722,1714339903558,-500.0,0.00012876,2]
[324806723,1714339903567,-14272.99,0.00012876,2]
[324806724,1714339903576,-544.14,0.00012876,2]
[324806725,1714339903585,-7051.41,0.00012876,2]
[324806726,1714339903594,-500.0,0.00012876,2]
[324806727,1714339903603,-2707.78,0.00012876,2]
[324806728,1714339903613,-500.0,0.00012876,2]
[324806729,1714339903622,-1038.22,0.00012876,2]
[324806730,1714339903631,-500.0,0.00012876,2]
[324806731,1714339903640,-789.36,0.00012876,2]
[324806732,1714339903649,-2766.64,0.00012876,2]
[324806733,1714339903659,-987.03,0.00012876,2]
[324806734,1714339903668,-1211.54,0.00012876,2]
[324806735,1714339903677,-1666.13,0.00012876,2]
[324806736,1714339903687,-675.35,0.00012876,2]
[324806737,1714339903695,-500.0,0.00012876,2]
[324806738,1714339903705,-1349.22,0.00012876,2]
[324806739,1714339903714,-1516.18,0.00012876,2]
[324806740,1714339903724,-500.0,0.00012876,2]
[324806741,1714339903733,-6591.59,0.00012876,2]
[324806742,1714339903743,-1899.29,0.00012876,2]
[324806743,1714339903752,-783.36,0.00012876,2]
[324806744,1714339903762,-1988.95,0.00012876,2]
[324806745,1714339903771,-500.0,0.00012876,2]
[324806746,1714339903783,-1261.65,0.00012876,2]
[324806747,1714339903793,-2135.06,0.00012876,2]
[324806748,1714339903802,-500.0,0.00012876,2]
[324806749,1714339903812,-562.7,0.00012876,2]
[324806750,1714339903823,-500.0,0.00012876,2]
[324806751,1714339903832,-500.0,0.00012876,2]
[324806752,1714339903842,-6232.35,0.00012876,2]
[324806753,1714339903852,-659.22,0.00012876,2]
[324806754,1714339903864,-1410.0,0.00012876,2]
[324806755,1714339903875,-1672.92,0.00012876,2]
[324806756,1714339903884,-1799.04,0.00012876,2]
[324806757,1714339903894,-500.0,0.00012876,2]
[324806758,1714339903904,-895.24,0.00012876,2]
[324806759,1714339903914,-1513.28,0.00012876,2]
[324806760,1714339903923,-6800.76,0.00012876,2]
[324806761,1714339903934,-500.0,0.00012876,2]
[324806762,1714339903945,-500.0,0.00012876,2]
[324806763,1714339903955,-753.18,0.00012876,2]
[324806764,1714339903965,-500.0,0.00012876,2]
[324806765,1714339903975,-1733.37,0.00012876,2]
[324806766,1714339903984,-782.1,0.00012876,2]
[324806767,1714339903994,-1652.85,0.00012876,2]
[324806768,1714339904002,-500.0,0.00012876,2]
[324806769,1714339904011,-315.33,0.00012876,2]
[324806770,1714339904021,-1590.77,0.00012876,2]
[324806771,1714339904031,-12133.37,0.00012876,2]
[324806772,1714339904040,-2025.62,0.00012876,2]
[324806773,1714339904050,-1135.8,0.00012876,2]
[324806774,1714339904059,-1421.85,0.00012876,2]
[324806775,1714339904068,-500.0,0.00012876,2]
[324806776,1714339904077,-4575.67,0.00012876,2]
[324806777,1714339904086,-500.0,0.00012876,2]
[324806778,1714339904096,-1396.35,0.00012876,2]
[324806779,1714339904106,-6107.04,0.00012876,2]
[324806780,1714339904116,-998.38,0.00012876,2]
[324806781,1714339904125,-2527.69,0.00012876,2]
[324806782,1714339904135,-2789.13,0.00012876,2]
[324806783,1714339904144,-1761.96,0.00012876,2]
[324806784,1714339904153,-1062.84,0.00012876,2]
[324806785,1714339904163,-500.0,0.00012876,2]
[324806786,1714339904172,-1977.9,0.00012876,2]
[324806787,1714339904182,-2491.39,0.00012876,2]
[324806788,1714339904192,-1098.32,0.00012876,2]
[324806789,1714339904202,-500.0,0.00012876,2]
[324806790,1714339904210,-3361.84,0.00012876,2]
[324806791,1714339904219,-500.0,0.00012876,2]
[324806792,1714339904229,-1081.51,0.00012876,2]
[324806793,1714339904238,-2735.15,0.00012876,2]
[324806794,1714339904248,-500.0,0.00012876,2]
[324806795,1714339904257,-500.0,0.00012876,2]
[324806796,1714339904266,-1862.58,0.00012876,2]